Workbook

Sheet Sheet1 (2)
A1: 柳州市城中区2025年10月城镇公益性岗位补贴和社会保险补贴花名册
A2: 序号 | B2: 单位名称 | C2: 岗位名称 | D2: 姓名 | E2: 身份证号 | F2: 就业创业证号码 | G2: 补贴时间 | H2: 补贴金额合计 | N2: 备注
I3: 岗位补贴金额 | J3: 社保补贴金额小计
K4: 养老保险 | L4: 失业保险 | M4: 医疗保险
A5: 1 | B5: 柳州市城中区劳动保障管理服务中心 | C5: 劳动保障协管员 | D5: 林静如 | E5: 45020319******1325 | F5: 45020*******0610 | G5: 2025年10月 | H5: =I5+J5 -> 3,650.90 | I5: 2,640.00 | J5: =SUM(K5:M5) -> 1,010.90 | K5: 662.88 | L5: 20.72 | M5: 327.30
A6: 2 | B6: 柳州市城中区劳动保障管理服务中心 | C6: 劳动保障协管员 | D6: 尹华芳 | E6: 45020319******0722 | F6: 45020*******1636 | G6: 2025年10月 | H6: 3,650.90 | I6: 2,640.00 | J6: 1,010.90 | K6: 662.88 | L6: 20.72 | M6: 327.30
A7: 3 | B7: 柳州市城中区劳动保障管理服务中心 | C7: 劳动保障协管员 | D7: 谢丹妮 | E7: 45020219******0328 | F7: 45020*******1473 | G7: 2025年10月 | H7: 3,650.90 | I7: 2,640.00 | J7: 1,010.90 | K7: 662.88 | L7: 20.72 | M7: 327.30
A8: 4 | B8: 柳州市城中区劳动保障管理服务中心 | C8: 劳动保障协管员 | D8: 陈炜婵 | E8: 45020519******0040 | F8: 45020*******0517 | G8: 2025年10月 | H8: 3,650.90 | I8: 2,640.00 | J8: 1,010.90 | K8: 662.88 | L8: 20.72 | M8: 327.30
A9: 5 | B9: 柳州市城中区劳动保障管理服务中心 | C9: 劳动保障协管员 | D9: 邓黎黎 | E9: 45020319******0748 | F9: 45020*******1278 | G9: 2025年10月 | H9: 3,650.90 | I9: 2,640.00 | J9: 1,010.90 | K9: 662.88 | L9: 20.72 | M9: 327.30
A10: 6 | B10: 柳州市城中区劳动保障管理服务中心 | C10: 劳动保障协管员 | D10: 谢琳 | E10: 45021119******1621 | F10: 45020*******0250 | G10: 2025年10月 | H10: 3,650.90 | I10: 2,640.00 | J10: 1,010.90 | K10: 662.88 | L10: 20.72 | M10: 327.30
A11: 7 | B11: 柳州市城中区劳动保障管理服务中心 | C11: 劳动保障协管员 | D11: 陈兰 | E11: 45020519******1328 | F11: 45020*******6933 | G11: 2025年10月 | H11: 3,650.90 | I11: 2,640.00 | J11: 1,010.90 | K11: 662.88 | L11: 20.72 | M11: 327.30
A12: 8 | B12: 柳州市城中区劳动保障管理服务中心 | C12: 劳动保障协管员 | D12: 苏章敏 | E12: 45020519******0422 | F12: 45020*******0350 | G12: 2025年10月 | H12: 3,650.90 | I12: 2,640.00 | J12: 1,010.90 | K12: 662.88 | L12: 20.72 | M12: 327.30
A13: 9 | B13: 柳州市城中区劳动保障管理服务中心 | C13: 劳动保障协管员 | D13: 滕春艳 | E13: 45020519******042X | F13: 45020*******6341 | G13: 2025年10月 | H13: 3,650.90 | I13: 2,640.00 | J13: 1,010.90 | K13: 662.88 | L13: 20.72 | M13: 327.30
A14: 10 | B14: 柳州市城中区劳动保障管理服务中心 | C14: 劳动保障协管员 | D14: 胡俊娟 | E14: 45020519******0784 | F14: 45020*******0963 | G14: 2025年10月 | H14: 3,650.90 | I14: 2,640.00 | J14: 1,010.90 | K14: 662.88 | L14: 20.72 | M14: 327.30
A15: 11 | B15: 柳州市城中区劳动保障管理服务中心 | C15: 劳动保障协管员 | D15: 郭丽琼 | E15: 45020419******0026 | F15: 45020*******4098 | G15: 2025年10月 | H15: =I15+J15 -> 3,650.90 | I15: 2,640.00 | J15: =SUM(K15:M15) -> 1,010.90 | K15: 662.88 | L15: 20.72 | M15: 327.30
A16: 12 | B16: 柳州市城中区劳动保障管理服务中心 | C16: 劳动保障协管员 | D16: 林圆新 | E16: 45020519******1386 | F16: 45020*******1934 | G16: 2025年10月 | H16: 3,650.90 | I16: 2,640.00 | J16: 1,010.90 | K16: 662.88 | L16: 20.72 | M16: 327.30
A17: 13 | B17: 柳州市城中区劳动保障管理服务中心 | C17: 劳动保障协管员 | D17: 雷颖莉 | E17: 43292719******0826 | F17: 45020*******1304 | G17: 2025年10月 | H17: 3,650.90 | I17: 2,640.00 | J17: 1,010.90 | K17: 662.88 | L17: 20.72 | M17: 327.30
A18: 14 | B18: 柳州市城中区劳动保障管理服务中心 | C18: 劳动保障协管员 | D18: 韦朝阳 | E18: 45021119******0829 | F18: 45020*******0725 | G18: 2025年10月 | H18: 3,650.90 | I18: 2,640.00 | J18: 1,010.90 | K18: 662.88 | L18: 20.72 | M18: 327.30
A19: 15 | B19: 柳州市城中区劳动保障管理服务中心 | C19: 劳动保障协管员 | D19: 谢向艳 | E19: 45020519******0027 | F19: 45020*******0887 | G19: 2025年10月 | H19: 3,650.90 | I19: 2,640.00 | J19: 1,010.90 | K19: 662.88 | L19: 20.72 | M19: 327.30
A20: 16 | B20: 柳州市城中区劳动保障管理服务中心 | C20: 劳动保障协管员 | D20: 林珏 | E20: 45020419******0028 | F20: 45020*******1909 | G20: 2025年10月 | H20: 3,650.90 | I20: 2,640.00 | J20: 1,010.90 | K20: 662.88 | L20: 20.72 | M20: 327.30
A21: 17 | B21: 柳州市城中区劳动保障管理服务中心 | C21: 劳动保障协管员 | D21: 肖燕飞 | E21: 43052819******7381 | F21: 45020*******0191 | G21: 2025年10月 | H21: 3,650.90 | I21: 2,640.00 | J21: 1,010.90 | K21: 662.88 | L21: 20.72 | M21: 327.30
A22: 18 | B22: 柳州市城中区劳动保障管理服务中心 | C22: 劳动保障协管员 | D22: 赖小玲 | E22: 36223319******3623 | F22: 45020*******0528 | G22: 2025年10月 | H22: 3,650.90 | I22: 2,640.00 | J22: 1,010.90 | K22: 662.88 | L22: 20.72 | M22: 327.30
A23: 19 | B23: 柳州市城中区劳动保障管理服务中心 | C23: 劳动保障协管员 | D23: 伍斯妹 | E23: 45021119******0826 | F23: 45020*******0080 | G23: 2025年10月 | H23: 3,650.90 | I23: 2,640.00 | J23: 1,010.90 | K23: 662.88 | L23: 20.72 | M23: 327.30
A24: 20 | B24: 柳州市城中区劳动保障管理服务中心 | C24: 劳动保障协管员 | D24: 刘莉 | E24: 45020419******1028 | F24: 45020*******0926 | G24: 2025年10月 | H24: 3,650.90 | I24: 2,640.00 | J24: 1,010.90 | K24: 662.88 | L24: 20.72 | M24: 327.30
A25: 21 | B25: 柳州市城中区劳动保障管理服务中心 | C25: 劳动保障协管员 | D25: 黎丽 | E25: 45222319******0029 | F25: 45020*******0671 | G25: 2025年10月 | H25: 3,650.90 | I25: 2,640.00 | J25: 1,010.90 | K25: 662.88 | L25: 20.72 | M25: 327.30
A26: 22 | B26: 柳州市城中区劳动保障管理服务中心 | C26: 劳动保障协管员 | D26: 莫艳青 | E26: 45022119******0025 | F26: 45020*******9519 | G26: 2025年10月 | H26: 3,650.90 | I26: 2,640.00 | J26: 1,010.90 | K26: 662.88 | L26: 20.72 | M26: 327.30
A27: 23 | B27: 柳州市城中区劳动保障管理服务中心 | C27: 劳动保障协管员 | D27: 苏端 | E27: 45020319******0042 | F27: 45020*******2862 | G27: 2025年10月 | H27: 3,650.90 | I27: 2,640.00 | J27: 1,010.90 | K27: 662.88 | L27: 20.72 | M27: 327.30
A28: 24 | B28: 柳州市城中区劳动保障管理服务中心 | C28: 劳动保障协管员 | D28: 唐永红 | E28: 45020419******0027 | F28: 45020*******5908 | G28: 2025年10月 | H28: 3,650.90 | I28: 2,640.00 | J28: 1,010.90 | K28: 662.88 | L28: 20.72 | M28: 327.30
A29: 25 | B29: 柳州市城中区劳动保障管理服务中心 | C29: 劳动保障协管员 | D29: 谭秋红 | E29: 45020319******1329 | F29: 45020*******0570 | G29: 2025年10月 | H29: 3,650.90 | I29: 2,640.00 | J29: 1,010.90 | K29: 662.88 | L29: 20.72 | M29: 327.30
A30: 26 | B30: 柳州市城中区劳动保障管理服务中心 | C30: 劳动保障协管员 | D30: 林春红 | E30: 45021119******1322 | F30: 45020*******1813 | G30: 2025年10月 | H30: 3,650.90 | I30: 2,640.00 | J30: 1,010.90 | K30: 662.88 | L30: 20.72 | M30: 327.30
A31: 27 | B31: 柳州市城中区劳动保障管理服务中心 | C31: 劳动保障协管员 | D31: 谭志强 | E31: 45020519******0011 | F31: 45020*******2275 | G31: 2025年10月 | H31: 3,650.90 | I31: 2,640.00 | J31: 1,010.90 | K31: 662.88 | L31: 20.72 | M31: 327.30
A32: 28 | B32: 柳州市城中区劳动保障管理服务中心 | C32: 劳动保障协管员 | D32: 张英 | E32: 45010319******2027 | F32: 45020*******2563 | G32: 2025年10月 | H32: 3,650.90 | I32: 2,640.00 | J32: 1,010.90 | K32: 662.88 | L32: 20.72 | M32: 327.30
A33: 29 | B33: 柳州市城中区劳动保障管理服务中心 | C33: 劳动保障协管员 | D33: 韦晓艳 | E33: 45020519******0424 | F33: 45020*******0453 | G33: 2025年10月 | H33: 3,650.90 | I33: 2,640.00 | J33: 1,010.90 | K33: 662.88 | L33: 20.72 | M33: 327.30
A34: 30 | B34: 柳州市城中区劳动保障管理服务中心 | C34: 劳动保障协管员 | D34: 张炜 | E34: 45020519******1016 | F34: 45020*******0276 | G34: 2025年10月 | H34: 3,650.90 | I34: 2,640.00 | J34: 1,010.90 | K34: 662.88 | L34: 20.72 | M34: 327.30
A35: 31 | B35: 柳州市城中区劳动保障管理服务中心 | C35: 劳动保障协管员 | D35: 钟宏梅 | E35: 45020519******0769 | F35: 45020*******0616 | G35: 2025年10月 | H35: 3,650.90 | I35: 2,640.00 | J35: 1,010.90 | K35: 662.88 | L35: 20.72 | M35: 327.30
A36: 32 | B36: 柳州市城中区劳动保障管理服务中心 | C36: 劳动保障协管员 | D36: 黄利英 | E36: 45020219******0024 | F36: 45020*******0455 | G36: 2025年10月 | H36: 3,650.90 | I36: 2,640.00 | J36: 1,010.90 | K36: 662.88 | L36: 20.72 | M36: 327.30
A37: 33 | B37: 柳州市城中区劳动保障管理服务中心 | C37: 劳动保障协管员 | D37: 黄祖贤 | E37: 45020319******0332 | F37: 45020*******0583 | G37: 2025年10月 | H37: 3,650.90 | I37: 2,640.00 | J37: 1,010.90 | K37: 662.88 | L37: 20.72 | M37: 327.30
A38: 34 | B38: 柳州市城中区劳动保障管理服务中心 | C38: 劳动保障协管员 | D38: 黄钰 | E38: 45020319******0027 | F38: 45020*******1441 | G38: 2025年10月 | H38: 3,650.90 | I38: 2,640.00 | J38: 1,010.90 | K38: 662.88 | L38: 20.72 | M38: 327.30
A39: 35 | B39: 柳州市城中区劳动保障管理服务中心 | C39: 劳动保障协管员 | D39: 王英 | E39: 45020219******0022 | F39: 45020*******0101 | G39: 2025年10月 | H39: 3,650.90 | I39: 2,640.00 | J39: 1,010.90 | K39: 662.88 | L39: 20.72 | M39: 327.30
A40: 36 | B40: 柳州市城中区劳动保障管理服务中心 | C40: 劳动保障协管员 | D40: 丘凌 | E40: 45020219******0021 | F40: 45020*******0654 | G40: 2025年10月 | H40: 3,650.90 | I40: 2,640.00 | J40: 1,010.90 | K40: 662.88 | L40: 20.72 | M40: 327.30
A41: 37 | B41: 柳州市城中区劳动保障管理服务中心 | C41: 劳动保障协管员 | D41: 钟锋 | E41: 45020519******1312 | F41: 45020*******1328 | G41: 2025年10月 | H41: 3,650.90 | I41: 2,640.00 | J41: 1,010.90 | K41: 662.88 | L41: 20.72 | M41: 327.30
A42: 38 | B42: 柳州市城中区劳动保障管理服务中心 | C42: 劳动保障协管员 | D42: 蓝雅馨 | E42: 45020319******1327 | F42: 45020*******0202 | G42: 2025年10月 | H42: 3,650.90 | I42: 2,640.00 | J42: 1,010.90 | K42: 662.88 | L42: 20.72 | M42: 327.30
A43: 39 | B43: 柳州市城中区劳动保障管理服务中心 | C43: 劳动保障协管员 | D43: 许妍 | E43: 45020219******0620 | F43: 45020*******2289 | G43: 2025年10月 | H43: 3,650.90 | I43: 2,640.00 | J43: 1,010.90 | K43: 662.88 | L43: 20.72 | M43: 327.30
A44: 40 | B44: 柳州市城中区劳动保障管理服务中心 | C44: 劳动保障协管员 | D44: 曾攀毅 | E44: 45021119******0526 | F44: 45020*******1770 | G44: 2025年10月 | H44: 3,650.90 | I44: 2,640.00 | J44: 1,010.90 | K44: 662.88 | L44: 20.72 | M44: 327.30
A45: 41 | B45: 柳州市城中区劳动保障管理服务中心 | C45: 劳动保障协管员 | D45: 吴静婷 | E45: 45021119******1326 | F45: 45020*******5371 | G45: 2025年10月 | H45: 3,650.90 | I45: 2,640.00 | J45: 1,010.90 | K45: 662.88 | L45: 20.72 | M45: 327.30
A46: 42 | B46: 柳州市城中区劳动保障管理服务中心 | C46: 劳动保障协管员 | D46: 潘慧梅 | E46: 45223119******004X | F46: 45020*******2706 | G46: 2025年10月 | H46: 3,650.90 | I46: 2,640.00 | J46: 1,010.90 | K46: 662.88 | L46: 20.72 | M46: 327.30
A47: 43 | B47: 柳州市城中区劳动保障管理服务中心 | C47: 劳动保障协管员 | D47: 陶文娟 | E47: 45021119******1620 | F47: 45020*******1867 | G47: 2025年10月 | H47: 3,650.90 | I47: 2,640.00 | J47: 1,010.90 | K47: 662.88 | L47: 20.72 | M47: 327.30
A48: 44 | B48: 柳州市城中区劳动保障管理服务中心 | C48: 劳动保障协管员 | D48: 罗惠元 | E48: 45222919******0043 | F48: 45022*******0798 | G48: 2025年10月 | H48: 3,650.90 | I48: 2,640.00 | J48: 1,010.90 | K48: 662.88 | L48: 20.72 | M48: 327.30
A49: 45 | B49: 柳州市城中区劳动保障管理服务中心 | C49: 劳动保障协管员 | D49: 黄莉满 | E49: 45020419******0346 | F49: 45020*******0647 | G49: 2025年10月 | H49: 3,650.90 | I49: 2,640.00 | J49: 1,010.90 | K49: 662.88 | L49: 20.72 | M49: 327.30
A50: 46 | B50: 柳州市城中区劳动保障管理服务中心 | C50: 劳动保障协管员 | D50: 吴培旭 | E50: 45020520******0417 | F50: 45020*******1135 | G50: 2025年10月 | H50: 3,650.90 | I50: 2,640.00 | J50: 1,010.90 | K50: 662.88 | L50: 20.72 | M50: 327.30
A51: 47 | B51: 柳州市城中区劳动保障管理服务中心 | C51: 劳动保障协管员 | D51: 欧志远 | E51: 45020419******0311 | F51: 45020*******2167 | G51: 2025年10月 | H51: 3,650.90 | I51: 2,640.00 | J51: 1,010.90 | K51: 662.88 | L51: 20.72 | M51: 327.30
A52: 48 | B52: 柳州市城中区劳动保障管理服务中心 | C52: 劳动保障协管员 | D52: 杨东晓 | E52: 45021120******1310 | F52: 45020*******8209 | G52: 2025年10月 | H52: 3,650.90 | I52: 2,640.00 | J52: 1,010.90 | K52: 662.88 | L52: 20.72 | M52: 327.30
A53: 49 | B53: 柳州市城中区劳动保障管理服务中心 | C53: 劳动保障协管员 | D53: 韦炯 | E53: 45020519******0018 | F53: 45020*******0628 | G53: 2025年10月 | H53: 3,650.90 | I53: 2,640.00 | J53: 1,010.90 | K53: 662.88 | L53: 20.72 | M53: 327.30
A54: 50 | B54: 柳州市城中区劳动保障管理服务中心 | C54: 劳动保障协管员 | D54: 韦佳玲 | E54: 45020219******0020 | F54: 45020*******1524 | G54: 2025年10月 | H54: 3,650.90 | I54: 2,640.00 | J54: 1,010.90 | K54: 662.88 | L54: 20.72 | M54: 327.30
A55: 51 | B55: 柳州市城中区劳动保障管理服务中心 | C55: 劳动保障协管员 | D55: 欧枝兰 | E55: 45212319******2247 | F55: 45020*******0455 | G55: 2025年10月 | H55: 3,650.90 | I55: 2,640.00 | J55: 1,010.90 | K55: 662.88 | L55: 20.72 | M55: 327.30
A56: 52 | B56: 柳州市城中区劳动保障管理服务中心 | C56: 劳动保障协管员 | D56: 罗鸿莲 | E56: 45020319******1029 | F56: 45020*******0254 | G56: 2025年10月 | H56: 3,650.90 | I56: 2,640.00 | J56: 1,010.90 | K56: 662.88 | L56: 20.72 | M56: 327.30
A57: 53 | B57: 柳州市城中区劳动保障管理服务中心 | C57: 劳动保障协管员 | D57: 黎斌 | E57: 45020419******0026 | F57: 45020*******8730 | G57: 2025年10月 | H57: 3,650.90 | I57: 2,640.00 | J57: 1,010.90 | K57: 662.88 | L57: 20.72 | M57: 327.30
A58: 54 | B58: 柳州市城中区劳动保障管理服务中心 | C58: 劳动保障协管员 | D58: 陈文清 | E58: 45022219******0316 | F58: 45020*******2541 | G58: 2025年10月 | H58: 3,650.90 | I58: 2,640.00 | J58: 1,010.90 | K58: 662.88 | L58: 20.72 | M58: 327.30
A59: 55 | B59: 柳州市城中区劳动保障管理服务中心 | C59: 劳动保障协管员 | D59: 李俊 | E59: 45020419******1023 | F59: 45020*******1764 | G59: 2025年10月 | H59: 3,650.90 | I59: 2,640.00 | J59: 1,010.90 | K59: 662.88 | L59: 20.72 | M59: 327.30
A60: 56 | B60: 柳州市城中区劳动保障管理服务中心 | C60: 劳动保障协管员 | D60: 刘妍 | E60: 45020319******0023 | F60: 45020*******0360 | G60: 2025年10月 | H60: 3,650.90 | I60: 2,640.00 | J60: 1,010.90 | K60: 662.88 | L60: 20.72 | M60: 327.30
A61: 57 | B61: 柳州市城中区劳动保障管理服务中心 | C61: 劳动保障协管员 | D61: 贾梓豪 | E61: 45020520******0715 | F61: 45020*******0504 | G61: 2025年10月 | H61: 3,650.90 | I61: 2,640.00 | J61: 1,010.90 | K61: 662.88 | L61: 20.72 | M61: 327.30
A62: 58 | B62: 柳州市城中区劳动保障管理服务中心 | C62: 劳动保障协管员 | D62: 卓珍萍 | E62: 45020219******0624 | F62: 45020*******1187 | G62: 2025年10月 | H62: 3,650.90 | I62: 2,640.00 | J62: 1,010.90 | K62: 662.88 | L62: 20.72 | M62: 327.30
A63: 59 | B63: 柳州市城中区劳动保障管理服务中心 | C63: 劳动保障协管员 | D63: 朱薇薇 | E63: 45020219******0023 | F63: 45020*******0853 | G63: 2025年10月 | H63: 3,650.90 | I63: 2,640.00 | J63: 1,010.90 | K63: 662.88 | L63: 20.72 | M63: 327.30
A64: 60 | B64: 柳州市城中区劳动保障管理服务中心 | C64: 劳动保障协管员 | D64: 曾树群 | E64: 45020519******0420 | F64: 45020*******1914 | G64: 2025年10月 | H64: 3,650.90 | I64: 2,640.00 | J64: 1,010.90 | K64: 662.88 | L64: 20.72 | M64: 327.30
A65: 61 | B65: 柳州市城中区劳动保障管理服务中心 | C65: 劳动保障协管员 | D65: 陈纪伟 | E65: 45020219******0318 | F65: 45020*******6710 | G65: 2025年10月 | H65: 3,650.90 | I65: 2,640.00 | J65: 1,010.90 | K65: 662.88 | L65: 20.72 | M65: 327.30
A66: 62 | B66: 柳州市城中区劳动保障管理服务中心 | C66: 劳动保障协管员 | D66: 吕舟 | E66: 45020319******0041 | F66: 45020*******2067 | G66: 2025年10月 | H66: 3,650.90 | I66: 2,640.00 | J66: 1,010.90 | K66: 662.88 | L66: 20.72 | M66: 327.30
A67: 63 | B67: 柳州市城中区劳动保障管理服务中心 | C67: 劳动保障协管员 | D67: 邵芸 | E67: 45020219******0064 | F67: 45020*******3785 | G67: 2025年10月 | H67: 3,650.90 | I67: 2,640.00 | J67: 1,010.90 | K67: 662.88 | L67: 20.72 | M67: 327.30
A68: 64 | B68: 柳州市城中区劳动保障管理服务中心 | C68: 劳动保障协管员 | D68: 黄媛媛 | E68: 45020519******0726 | F68: 45020*******1827 | G68: 2025年10月 | H68: =I68+J68 -> 3,650.90 | I68: 2,640.00 | J68: =SUM(K68:M68) -> 1,010.90 | K68: 662.88 | L68: 20.72 | M68: 327.30
A69: 65 | B69: 柳州市城中区劳动保障管理服务中心 | C69: 劳动保障协管员 | D69: 黄静 | E69: 45022219******0045 | F69: 45020*******6167 | G69: 2025年10月 | H69: 3,650.90 | I69: 2,640.00 | J69: 1,010.90 | K69: 662.88 | L69: 20.72 | M69: 327.30
A70: 66 | B70: 柳州市城中区劳动保障管理服务中心 | C70: 劳动保障协管员 | D70: 汪君瑜 | E70: 45020419******0322 | F70: 45020*******0174 | G70: 2025年10月 | H70: 3,650.90 | I70: 2,640.00 | J70: 1,010.90 | K70: 662.88 | L70: 20.72 | M70: 327.30
A71: 67 | B71: 柳州市城中区劳动保障管理服务中心 | C71: 劳动保障协管员 | D71: 梁柳菊 | E71: 45020419******0346 | F71: 45020*******1706 | G71: 2025年10月 | H71: 3,650.90 | I71: 2,640.00 | J71: 1,010.90 | K71: 662.88 | L71: 20.72 | M71: 327.30
A72: 68 | B72: 柳州市城中区劳动保障管理服务中心 | C72: 劳动保障协管员 | D72: 欧阳霞 | E72: 45052119******0045 | F72: 45020*******0024 | G72: 2025年10月 | H72: 3,650.90 | I72: 2,640.00 | J72: 1,010.90 | K72: 662.88 | L72: 20.72 | M72: 327.30
A73: 69 | B73: 柳州市城中区劳动保障管理服务中心 | C73: 劳动保障协管员 | D73: 廖奇云 | E73: 45020319******102X | F73: 45020*******2046 | G73: 2025年10月 | H73: 3,650.90 | I73: 2,640.00 | J73: 1,010.90 | K73: 662.88 | L73: 20.72 | M73: 327.30
A74: 70 | B74: 柳州市城中区劳动保障管理服务中心 | C74: 劳动保障协管员 | D74: 王春华 | E74: 45021119******1322 | F74: 45020*******6243 | G74: 2025年10月 | H74: 3,650.90 | I74: 2,640.00 | J74: 1,010.90 | K74: 662.88 | L74: 20.72 | M74: 327.30
A75: 71 | B75: 柳州市城中区劳动保障管理服务中心 | C75: 劳动保障协管员 | D75: 杨金珠 | E75: 45011119******3348 | F75: 45020*******8300 | G75: 2025年10月 | H75: 3,650.90 | I75: 2,640.00 | J75: 1,010.90 | K75: 662.88 | L75: 20.72 | M75: 327.30
A76: 72 | B76: 柳州市城中区劳动保障管理服务中心 | C76: 劳动保障协管员 | D76: 林恒 | E76: 45020519******0420 | F76: 45020*******9020 | G76: 2025年10月 | H76: 3,650.90 | I76: 2,640.00 | J76: 1,010.90 | K76: 662.88 | L76: 20.72 | M76: 327.30
A77: 73 | B77: 柳州市城中区劳动保障管理服务中心 | C77: 劳动保障协管员 | D77: 廖素丹 | E77: 45021119******1329 | F77: 45020*******1426 | G77: 2025年10月 | H77: 3,650.90 | I77: 2,640.00 | J77: 1,010.90 | K77: 662.88 | L77: 20.72 | M77: 327.30
A78: 74 | B78: 柳州市城中区劳动保障管理服务中心 | C78: 劳动保障协管员 | D78: 罗细玲 | E78: 42028119******8428 | F78: 45020*******4750 | G78: 2025年10月 | H78: 3,650.90 | I78: 2,640.00 | J78: 1,010.90 | K78: 662.88 | L78: 20.72 | M78: 327.30
A79: 75 | B79: 柳州市城中区劳动保障管理服务中心 | C79: 劳动保障协管员 | D79: 董保宏 | E79: 45020419******0336 | F79: 45020*******6165 | G79: 2025年10月 | H79: 3,650.90 | I79: 2,640.00 | J79: 1,010.90 | K79: 662.88 | L79: 20.72 | M79: 327.30
A80: 76 | B80: 柳州市城中区劳动保障管理服务中心 | C80: 劳动保障协管员 | D80: 张艳玲 | E80: 45222319******0029 | F80: 45020*******0394 | G80: 2025年10月 | H80: 3,650.90 | I80: 2,640.00 | J80: 1,010.90 | K80: 662.88 | L80: 20.72 | M80: 327.30
A81: 77 | B81: 柳州市城中区劳动保障管理服务中心 | C81: 劳动保障协管员 | D81: 解雯艳 | E81: 45020219******0048 | F81: 45020*******0813 | G81: 2025年10月 | H81: 3,650.90 | I81: 2,640.00 | J81: 1,010.90 | K81: 662.88 | L81: 20.72 | M81: 327.30
A82: 78 | B82: 柳州市城中区劳动保障管理服务中心 | C82: 劳动保障协管员 | D82: 韦旺 | E82: 45020319******1014 | F82: 45020*******3029 | G82: 2025年10月 | H82: 3,650.90 | I82: 2,640.00 | J82: 1,010.90 | K82: 662.88 | L82: 20.72 | M82: 327.30
A83: 79 | B83: 柳州市城中区劳动保障管理服务中心 | C83: 劳动保障协管员 | D83: 唐秋玉 | E83: 45020219******002X | F83: 45020*******0311 | G83: 2025年10月 | H83: 3,650.90 | I83: 2,640.00 | J83: 1,010.90 | K83: 662.88 | L83: 20.72 | M83: 327.30
A84: 80 | B84: 柳州市城中区劳动保障管理服务中心 | C84: 劳动保障协管员 | D84: 黄景熙 | E84: 45020219******0067 | F84: 45020*******0138 | G84: 2025年10月 | H84: 3,650.90 | I84: 2,640.00 | J84: 1,010.90 | K84: 662.88 | L84: 20.72 | M84: 327.30
A85: 81 | B85: 柳州市城中区劳动保障管理服务中心 | C85: 劳动保障协管员 | D85: 蔡智玲 | E85: 45021119******1320 | F85: 45020*******1346 | G85: 2025年10月 | H85: 3,650.90 | I85: 2,640.00 | J85: 1,010.90 | K85: 662.88 | L85: 20.72 | M85: 327.30
A86: 82 | B86: 柳州市城中区劳动保障管理服务中心 | C86: 劳动保障协管员 | D86: 黄喆 | E86: 45021119******1623 | F86: 45020*******4221 | G86: 2025年10月 | H86: 3,650.90 | I86: 2,640.00 | J86: 1,010.90 | K86: 662.88 | L86: 20.72 | M86: 327.30
A87: 83 | B87: 柳州市城中区劳动保障管理服务中心 | C87: 劳动保障协管员 | D87: 苏慧芬 | E87: 45010519******004X | F87: 45022*******1518 | G87: 2025年10月 | H87: 3,650.90 | I87: 2,640.00 | J87: 1,010.90 | K87: 662.88 | L87: 20.72 | M87: 327.30
A88: 84 | B88: 柳州市城中区劳动保障管理服务中心 | C88: 劳动保障协管员 | D88: 袁秀云 | E88: 45032219******6027 | F88: 45020*******0170 | G88: 2025年10月 | H88: 3,650.90 | I88: 2,640.00 | J88: 1,010.90 | K88: 662.88 | L88: 20.72 | M88: 327.30
A89: 85 | B89: 柳州市城中区劳动保障管理服务中心 | C89: 劳动保障协管员 | D89: 方延 | E89: 45022119******0021 | F89: 45020*******1067 | G89: 2025年10月 | H89: 3,650.90 | I89: 2,640.00 | J89: 1,010.90 | K89: 662.88 | L89: 20.72 | M89: 327.30
A90: 86 | B90: 柳州市城中区劳动保障管理服务中心 | C90: 劳动保障协管员 | D90: 赵明 | E90: 45020519******042X | F90: 45020*******1433 | G90: 2025年10月 | H90: 3,650.90 | I90: 2,640.00 | J90: 1,010.90 | K90: 662.88 | L90: 20.72 | M90: 327.30
A91: 87 | B91: 柳州市城中区劳动保障管理服务中心 | C91: 劳动保障协管员 | D91: 叶倩诗 | E91: 45020219******0049 | F91: 45022*******0581 | G91: 2025年10月 | H91: 3,650.90 | I91: 2,640.00 | J91: 1,010.90 | K91: 662.88 | L91: 20.72 | M91: 327.30
A92: 88 | B92: 柳州市城中区劳动保障管理服务中心 | C92: 劳动保障协管员 | D92: 梁柳凤 | E92: 45020519******0745 | F92: 45020*******0180 | G92: 2025年10月 | H92: 3,650.90 | I92: 2,640.00 | J92: 1,010.90 | K92: 662.88 | L92: 20.72 | M92: 327.30
A93: 89 | B93: 柳州市城中区劳动保障管理服务中心 | C93: 劳动保障协管员 | D93: 马丽敏 | E93: 45020219******0660 | F93: 45020*******2073 | G93: 2025年10月 | H93: 3,650.90 | I93: 2,640.00 | J93: 1,010.90 | K93: 662.88 | L93: 20.72 | M93: 327.30
A94: 90 | B94: 柳州市城中区劳动保障管理服务中心 | C94: 劳动保障协管员 | D94: 刘倩云 | E94: 45020319******0720 | F94: 45020*******2571 | G94: 2025年10月 | H94: 3,650.90 | I94: 2,640.00 | J94: 1,010.90 | K94: 662.88 | L94: 20.72 | M94: 327.30
A95: 91 | B95: 柳州市城中区劳动保障管理服务中心 | C95: 劳动保障协管员 | D95: 居枫 | E95: 45020519******0434 | F95: 45020*******1668 | G95: 2025年10月 | H95: 3,650.90 | I95: 2,640.00 | J95: 1,010.90 | K95: 662.88 | L95: 20.72 | M95: 327.30
A96: 92 | B96: 柳州市城中区劳动保障管理服务中心 | C96: 劳动保障协管员 | D96: 莫惠玲 | E96: 45020319******0726 | F96: 45020*******0292 | G96: 2025年10月 | H96: 3,650.90 | I96: 2,640.00 | J96: 1,010.90 | K96: 662.88 | L96: 20.72 | M96: 327.30
G97: 小计 | H97: =SUM(H5:H96) -> ¥335,882.80 | I97: ¥242,880.00 | J97: ¥93,002.80 | K97: ¥60,984.96 | L97: ¥1,906.24 | M97: ¥30,111.60
A98: 93 | B98: 柳州市城中区总工会 | C98: 协管员 | D98: 毕莉娟 | E98: 45020519******0727 | F98: 45020*******0771 | G98: 2025年10月 | H98: =I98+J98 -> 3,650.90 | I98: 2,640.00 | J98: =SUM(K98:M98) -> 1,010.90 | K98: 662.88 | L98: 20.72 | M98: 327.30
A99: 94 | B99: 柳州市城中区总工会 | C99: 协管员 | D99: 胡建新 | E99: 45020519******0023 | F99: 45020*******0505 | G99: 2025年10月 | H99: 3,650.90 | I99: 2,640.00 | J99: 1,010.90 | K99: 662.88 | L99: 20.72 | M99: 327.30
A100: 95 | B100: 柳州市城中区总工会 | C100: 协管员 | D100: 刘晓红 | E100: 45030219******0522 | F100: 45020*******2175 | G100: 2025年10月 | H100: 3,650.90 | I100: 2,640.00 | J100: 1,010.90 | K100: 662.88 | L100: 20.72 | M100: 327.30
A101: 96 | B101: 柳州市城中区总工会 | C101: 协管员 | D101: 覃永泉 | E101: 45020419******0326 | F101: 45020*******1331 | G101: 2025年10月 | H101: 3,650.90 | I101: 2,640.00 | J101: 1,010.90 | K101: 662.88 | L101: 20.72 | M101: 327.30
A102: 97 | B102: 柳州市城中区总工会 | C102: 协管员 | D102: 吴逸萍 | E102: 45020219******0627 | F102: 45020*******0796 | G102: 2025年10月 | H102: 3,650.90 | I102: 2,640.00 | J102: 1,010.90 | K102: 662.88 | L102: 20.72 | M102: 327.30
A103: 98 | B103: 柳州市城中区总工会 | C103: 协管员 | D103: 黎泉孝 | E103: 45020419******1030 | F103: 45020*******0743 | G103: 2025年10月 | H103: 3,650.90 | I103: 2,640.00 | J103: 1,010.90 | K103: 662.88 | L103: 20.72 | M103: 327.30
A104: 99 | B104: 柳州市城中区总工会 | C104: 协管员 | D104: 余桦 | E104: 45020319******0024 | F104: 45132*******2111 | G104: 2025年10月 | H104: 3,650.90 | I104: 2,640.00 | J104: 1,010.90 | K104: 662.88 | L104: 20.72 | M104: 327.30
G105: 小计 | H105: =SUM(H98:H104) -> ¥25,556.30 | I105: ¥18,480.00 | J105: ¥7,076.30 | K105: ¥4,640.16 | L105: ¥145.04 | M105: ¥2,291.10
A106: 100 | B106: 柳州市文华中学 | C106: 公共卫生保洁员 | D106: 蒋炳文 | E106: 45020319******0324 | F106: 45020*******2165 | G106: 2025年10月 | H106: =I106+J106 -> 3,650.90 | I106: 2,640.00 | J106: =SUM(K106:M106) -> 1,010.90 | K106: 662.88 | L106: 20.72 | M106: 327.30
A107: 101 | B107: 柳州市文华中学 | C107: 公共环境绿化员 | D107: 程莉 | E107: 45020319******0320 | F107: 45020*******9610 | G107: 2025年10月 | H107: 3,650.90 | I107: 2,640.00 | J107: 1,010.90 | K107: 662.88 | L107: 20.72 | M107: 327.30
A108: 102 | B108: 柳州市文华中学 | C108: 公共卫生保洁员 | D108: 杨燕梅 | E108: 45022119******1924 | F108: 45022*******1390 | G108: 2025年10月 | H108: 3,650.90 | I108: 2,640.00 | J108: 1,010.90 | K108: 662.88 | L108: 20.72 | M108: 327.30
A109: 103 | B109: 柳州市文华中学 | C109: 公共卫生保洁员 | D109: 罗仙花 | E109: 45223119******4087 | F109: 45020*******4074 | G109: 2025年10月 | H109: 3,650.90 | I109: 2,640.00 | J109: 1,010.90 | K109: 662.88 | L109: 20.72 | M109: 327.30
A110: 104 | B110: 柳州市文华中学 | C110: 公共卫生保洁员 | D110: 朱志群 | E110: 45021119******1622 | F110: 45020*******5613 | G110: 2025年10月 | H110: 3,650.90 | I110: 2,640.00 | J110: 1,010.90 | K110: 662.88 | L110: 20.72 | M110: 327.30
G111: 小计 | H111: =SUM(H106:H110) -> ¥18,254.50 | I111: ¥13,200.00 | J111: ¥5,054.50 | K111: ¥3,314.40 | L111: ¥103.60 | M111: ¥1,636.50
A112: 105 | B112: 柳州市龙城中学 | C112: 公共卫生保洁员 | D112: 毛菊芳 | E112: 45022219******0060 | F112: 45020*******1138 | G112: 2025年10月 | H112: =I112+J112 -> 3,323.60 | I112: 2,640.00 | J112: =SUM(K112:M112) -> 683.60 | K112: 662.88 | L112: 20.72 | M112: 0
A113: 106 | B113: 柳州市龙城中学 | C113: 公共卫生保洁员 | D113: 杨明艳 | E113: 45222819******406X | F113: 45020*******4168 | G113: 2025年10月 | H113: =I113+J113 -> 3,323.60 | I113: 2,640.00 | J113: =SUM(K113:M113) -> 683.60 | K113: 662.88 | L113: 20.72 | M113: 0
G114: 小计 | H114: =SUM(H112:H113) -> ¥6,647.20 | I114: ¥5,280.00 | J114: ¥1,367.20 | K114: ¥1,325.76 | L114: ¥41.44 | M114: ¥0.00
A115: 107 | B115: 柳州市第三十中学 | C115: 公共卫生保洁员 | D115: 韦彦 | E115: 45222619******0026 | F115: 45020*******3693 | G115: 2025年10月 | H115: 2,640.00 | I115: 2,640.00 | J115: 0 | K115: 0 | L115: 0 | M115: 0
G116: 小计 | H116: =SUM(H115:H115) -> ¥2,640.00 | I116: ¥2,640.00 | J116: ¥0.00 | K116: ¥0.00 | L116: ¥0.00 | M116: ¥0.00
A117: 108 | B117: 柳州市前茅中学 | C117: 公共卫生保洁员 | D117: 温丰鸣 | E117: 45020419******0622 | F117: 45020*******0498 | G117: 2025年10月 | H117: 3,655.04 | I117: 2,640.00 | J117: 1,015.04 | K117: 662.88 | L117: 20.72 | M117: 331.44
G118: 小计 | H118: =SUM(H117:H117) -> ¥3,655.04 | I118: ¥2,640.00 | J118: ¥1,015.04 | K118: ¥662.88 | L118: ¥20.72 | M118: ¥331.44
A119: 109 | B119: 柳州市三门江中学 | C119: 公共卫生保洁员 | D119: 韦晓琼 | E119: 45273119******0343 | F119: 45020*******1849 | G119: 2025年10月 | H119: =I119+J119 -> 2,640.00 | I119: 2,640.00 | J119: =SUM(K119:M119) -> 0 | K119: 0 | L119: 0 | M119: 0
A120: 110 | B120: 柳州市三门江中学 | C120: 公共卫生保洁员 | D120: 许洁松 | E120: 45252519******3228 | F120: 45020*******4369 | G120: 2025年10月 | H120: 2,640.00 | I120: 2,640.00 | J120: 0 | K120: 0 | L120: 0 | M120: 0
A121: 111 | B121: 柳州市三门江中学 | C121: 公共卫生保洁员 | D121: 韦丽敏 | E121: 45222519******2922 | F121: 45020*******0418 | G121: 2025年10月 | H121: 2,640.00 | I121: 2,640.00 | J121: 0 | K121: 0 | L121: 0 | M121: 0
A122: 112 | B122: 柳州市三门江中学 | C122: 公共卫生保洁员 | D122: 甘翠霞 | E122: 45042119******1540 | F122: 45020*******4132 | G122: 2025年10月 | H122: 2,640.00 | I122: 2,640.00 | J122: 0 | K122: 0 | L122: 0 | M122: 0
A123: 113 | B123: 柳州市三门江中学 | C123: 公共环境绿化员 | D123: 谢代莹 | E123: 45012119******4525 | F123: 45020*******5355 | G123: 2025年10月 | H123: 2,640.00 | I123: 2,640.00 | J123: 0 | K123: 0 | L123: 0 | M123: 0
A124: 114 | B124: 柳州市三门江中学 | C124: 公共卫生保洁员 | D124: 陈远其 | E124: 45222319******3015 | F124: 45020*******4120 | G124: 2025年10月 | H124: 2,640.00 | I124: 2,640.00 | J124: 0 | K124: 0 | L124: 0 | M124: 0
A125: 115 | B125: 柳州市三门江中学 | C125: 公共环境绿化员 | D125: 黄蕖 | E125: 45020519******0426 | F125: 45020*******0481 | G125: 2025年10月 | H125: 2,640.00 | I125: 2,640.00 | J125: 0 | K125: 0 | L125: 0 | M125: 0
A126: 116 | B126: 柳州市三门江中学 | C126: 公共环境绿化员 | D126: 乔美忠 | E126: 45022219******3427 | F126: 45020*******3915 | G126: 2025年10月 | H126: =I126+J126 -> 2,640.00 | I126: 2,640.00 | J126: =SUM(K126:M126) -> 0 | K126: 0 | L126: 0 | M126: 0
G127: 小计 | H127: =SUM(H119:H126) -> ¥21,120.00 | I127: ¥21,120.00 | J127: ¥0.00 | K127: ¥0.00 | L127: ¥0.00 | M127: ¥0.00
A128: 117 | B128: 柳州市景行小学 | C128: 公共卫生保洁员 | D128: 韦苗 | E128: 45020519******0421 | F128: 45020*******5644 | G128: 2025年10月 | H128: 3,650.90 | I128: 2,640.00 | J128: 1,010.90 | K128: 662.88 | L128: 20.72 | M128: 327.30
A129: 118 | B129: 柳州市景行小学 | C129: 公共卫生保洁员 | D129: 田小华 | E129: 45020219******0913 | F129: 45020*******4154 | G129: 2025年10月 | H129: 3,650.90 | I129: 2,640.00 | J129: 1,010.90 | K129: 662.88 | L129: 20.72 | M129: 327.30
A130: 119 | B130: 柳州市景行小学 | C130: 公共卫生保洁员 | D130: 周佳凤 | E130: 45021119******0023 | F130: 45020*******8163 | G130: 2025年10月 | H130: 3,650.90 | I130: 2,640.00 | J130: 1,010.90 | K130: 662.88 | L130: 20.72 | M130: 327.30
A131: 120 | B131: 柳州市景行小学 | C131: 公共卫生保洁员 | D131: 陆静芬 | E131: 45022219******2622 | F131: 45020*******8974 | G131: 2025年10月 | H131: 3,650.90 | I131: 2,640.00 | J131: 1,010.90 | K131: 662.88 | L131: 20.72 | M131: 327.30
A132: 121 | B132: 柳州市景行小学 | C132: 公共卫生保洁员 | D132: 韦凤鲜 | E132: 45010419******1043 | F132: 45020*******1677 | G132: 2025年10月 | H132: 3,650.90 | I132: 2,640.00 | J132: 1,010.90 | K132: 662.88 | L132: 20.72 | M132: 327.30
A133: 122 | B133: 柳州市景行小学 | C133: 公共卫生保洁员 | D133: 丘海兰 | E133: 45252719******2520 | F133: 45020*******0450 | G133: 2025年10月 | H133: =I133+J133 -> 3,650.90 | I133: 2,640.00 | J133: =SUM(K133:M133) -> 1,010.90 | K133: 662.88 | L133: 20.72 | M133: 327.30
G134: 小计 | H134: =SUM(H128:H133) -> ¥21,905.40 | I134: ¥15,840.00 | J134: ¥6,065.40 | K134: ¥3,977.28 | L134: ¥124.32 | M134: ¥1,963.80
A135: 123 | B135: 柳州市文博小学 | C135: 公共卫生保洁员 | D135: 杨雪贞 | E135: 45222919******0624 | F135: 45020*******8231 | G135: 2025年10月 | H135: 2,640.00 | I135: 2,640.00 | J135: 0 | K135: 0 | L135: 0 | M135: 0
A136: 124 | B136: 柳州市文博小学 | C136: 公共卫生保洁员 | D136: 莫锦芬 | E136: 45270219******1580 | F136: 45020*******5367 | G136: 2025年10月 | H136: 2,640.00 | I136: 2,640.00 | J136: 0 | K136: 0 | L136: 0 | M136: 0
A137: 125 | B137: 柳州市文博小学 | C137: 公共卫生保洁员 | D137: 覃丽园 | E137: 45222719******122X | F137: 45020*******5322 | G137: 2025年10月 | H137: =I137+J137 -> 2,640.00 | I137: 2,640.00 | J137: =SUM(K137:M137) -> 0 | K137: 0 | L137: 0 | M137: 0
G138: 小计 | H138: =SUM(H135:H137) -> ¥7,920.00 | I138: ¥7,920.00 | J138: ¥0.00 | K138: ¥0.00 | L138: ¥0.00 | M138: ¥0.00
A139: 126 | B139: 柳州市潭中路小学 | C139: 公共卫生保洁员 | D139: 梁永英 | E139: 45252319******4128 | F139: 45020*******2305 | G139: 2025年10月 | H139: 3,650.90 | I139: 2,640.00 | J139: 1,010.90 | K139: 662.88 | L139: 20.72 | M139: 327.30
A140: 127 | B140: 柳州市潭中路小学 | C140: 公共卫生保洁员 | D140: 刘晓艳 | E140: 45020419******1028 | F140: 45020*******8792 | G140: 2025年10月 | H140: 3,650.90 | I140: 2,640.00 | J140: 1,010.90 | K140: 662.88 | L140: 20.72 | M140: 327.30
G141: 小计 | H141: =SUM(H139:H140) -> ¥7,301.80 | I141: ¥5,280.00 | J141: ¥2,021.80 | K141: ¥1,325.76 | L141: ¥41.44 | M141: ¥654.60
A142: 128 | B142: 柳州市文惠小学 | C142: 公共卫生保洁员 | D142: 陈争春 | E142: 45222319******7027 | F142: 45020*******5696 | G142: 2025年10月 | H142: =I142+J142 -> 3,650.90 | I142: 2,640.00 | J142: =SUM(K142:M142) -> 1,010.90 | K142: 662.88 | L142: 20.72 | M142: 327.30
G143: 小计 | H143: =SUM(H142:H142) -> ¥3,650.90 | I143: ¥2,640.00 | J143: ¥1,010.90 | K143: ¥662.88 | L143: ¥20.72 | M143: ¥327.30
A144: 129 | B144: 柳州市前茅小学 | C144: 公共卫生保洁员 | D144: 阳群英 | E144: 45020219******0622 | F144: 45020*******0331 | G144: 2025年10月 | H144: 2,640.00 | I144: 2,640.00 | J144: 0 | K144: 0 | L144: 0 | M144: 0
G145: 小计 | H145: =SUM(H144:H144) -> ¥2,640.00 | I145: ¥2,640.00 | J145: ¥0.00 | K145: ¥0.00 | L145: ¥0.00 | M145: ¥0.00
A146: 130 | B146: 柳州市公园路幼儿园 | C146: 公共卫生保洁员 | D146: 覃张梅 | E146: 45020319******1028 | F146: 45020*******0028 | G146: 2025年10月 | H146: 3,655.04 | I146: 2,640.00 | J146: 1,015.04 | K146: 662.88 | L146: 20.72 | M146: 331.44
A147: 131 | B147: 柳州市公园路幼儿园 | C147: 公共卫生保洁员 | D147: 郑汉强 | E147: 45020519******0437 | F147: 45020*******1958 | G147: 2025年10月 | H147: 3,655.04 | I147: 2,640.00 | J147: 1,015.04 | K147: 662.88 | L147: 20.72 | M147: 331.44
A148: 132 | B148: 柳州市公园路幼儿园 | C148: 公共卫生保洁员 | D148: 杨顺意 | E148: 45020519******0729 | F148: 45020*******1881 | G148: 2025年10月 | H148: 3,655.04 | I148: 2,640.00 | J148: 1,015.04 | K148: 662.88 | L148: 20.72 | M148: 331.44
A149: 133 | B149: 柳州市公园路幼儿园 | C149: 公共卫生保洁员 | D149: 丁巧杰 | E149: 45020519******1028 | F149: 45020*******4692 | G149: 2025年10月 | H149: 3,655.04 | I149: 2,640.00 | J149: 1,015.04 | K149: 662.88 | L149: 20.72 | M149: 331.44
G150: 小计 | H150: =SUM(H146:H149) -> ¥14,620.16 | I150: ¥10,560.00 | J150: ¥4,060.16 | K150: ¥2,651.52 | L150: ¥82.88 | M150: ¥1,325.76
A151: 134 | B151: 柳州市直属机关幼儿园 | C151: 公共卫生保洁员 | D151: 王玉 | E151: 45020419******0367 | F151: 45020*******5619 | G151: 2025年10月 | H151: =I151+J151 -> 3,323.60 | I151: 2,640.00 | J151: =SUM(K151:M151) -> 683.60 | K151: 662.88 | L151: 20.72 | M151: 0.00
A152: 135 | B152: 柳州市直属机关幼儿园 | C152: 公共卫生保洁员 | D152: 方莉 | E152: 45021119******1129 | F152: 45020*******8376 | G152: 2025年10月 | H152: =I152+J152 -> 3,650.90 | I152: 2,640.00 | J152: =SUM(K152:M152) -> 1,010.90 | K152: 662.88 | L152: 20.72 | M152: 327.30
G153: 小计 | H153: =SUM(H151:H152) -> ¥6,974.50 | I153: ¥5,280.00 | J153: ¥1,694.50 | K153: ¥1,325.76 | L153: ¥41.44 | M153: ¥327.30
A154: 合计（大写） | E154: =H154 -> 478768.6 | H154: =H97+H105+H111+H114+H116+H118+H127+H134+H138+H141+H143+H145+H150+H153 -> ¥478,768.60 | I154: ¥356,400.00 | J154: ¥122,368.60 | K154: ¥80,871.36 | L154: ¥2,527.84 | M154: ¥38,969.40
A155: 补贴标准：1、按柳州市最低工资标准的120％给予岗位补贴；
A156: 2.按用人单位为公益性岗位人员实际缴纳的基本养老保险费、基本医疗保险费和失业保险费给予社保补贴，不包含个人应缴纳部分。
